fUST/lending_fUST_20241026
["ID","MTS","AMOUNT","RATE_DAILY","PERIOD"]
[340846797,1729922860660,-742.5,0.00039178,120]
[340846798,1729922860692,-1556.5,0.00039178,120]
[340846799,1729922860724,-500.0,0.00039178,120]
[340846800,1729922860755,-554.76155302,0.00039178,120]
[340846801,1729922860790,-500.0,0.00039178,120]
[340846802,1729922860821,-500.0,0.00039178,120]
[340846803,1729922860852,-500.0,0.00039178,120]
[340846804,1729922860883,-500.0,0.00039178,120]
[340846805,1729922860917,-500.0,0.00039178,120]
[340846806,1729922860949,-1055.85,0.00039178,120]
[340846807,1729922860981,-529.75,0.00039178,120]
[340846808,1729922861013,-500.0,0.00039178,120]
[340846809,1729922861045,-500.0,0.00039178,120]
[340846810,1729922861077,-500.0,0.00039178,120]
[340846811,1729922861108,-500.0,0.00039178,120]
[340846812,1729922861140,-500.0,0.00039178,120]
[340846813,1729922861173,-500.0,0.00039178,120]
[340846814,1729922861206,-1021.03,0.00039178,120]
[340846815,1729922861238,-603.56797766,0.00039178,120]
[340846816,1729922861270,-563.99,0.00039178,120]
[340846817,1729922861302,-500.0,0.00039178,120]
[340846818,1729922861335,-500.0,0.00039178,120]
[340846819,1729922861368,-500.0,0.00039178,120]
[340846820,1729922861401,-500.0,0.00039178,120]
[340846821,1729922861433,-500.0,0.00039178,120]
[340846822,1729922861465,-500.0,0.00039178,120]
[340846823,1729922861496,-500.0,0.00039178,120]
[340846824,1729922861529,-500.0,0.00039178,120]
[340846825,1729922861561,-683.79,0.00039178,120]
[340846826,1729922861591,-500.0,0.00039178,120]
[340846827,1729922861622,-1000.0,0.00039178,120]
[340846828,1729922861654,-500.0,0.00039178,120]
[340846829,1729922861686,-500.0,0.00039178,120]
[340846830,1729922861717,-503.64704243,0.00039178,120]
[340846831,1729922861747,-501.56456926,0.00039178,120]
[340846832,1729922861779,-500.0,0.00039178,120]
[340846833,1729922861810,-548.68749755,0.00039178,120]
[340846834,1729922861841,-539.15,0.00039178,120]
[340846835,1729922861874,-500.0,0.00039178,120]
[340846836,1729922861905,-500.0,0.00039178,120]
[340846837,1729922861937,-500.0,0.00039178,120]
[340846838,1729922861970,-508.44484656,0.00039178,120]
[340846839,1729922862002,-806.51,0.00039178,120]
[340846840,1729922862034,-503.04403513,0.00039178,120]
[340846841,1729922862066,-1274.97,0.00039178,120]
[340846842,1729922862097,-818.92,0.00039178,120]
[340846843,1729922862129,-1696.78,0.00039178,120]
[340846844,1729922862162,-682.77,0.00039178,120]
[340846845,1729922862194,-500.0,0.00039178,120]
[340846846,1729922862227,-500.0,0.00039178,120]
[340846847,1729922862262,-517.17360684,0.00039178,120]
[340846848,1729922862294,-1069.12,0.00039178,120]
[340846849,1729922862326,-500.0,0.00039178,120]
[340846850,1729922862358,-500.0,0.00039178,120]
[340846851,1729922862390,-500.0,0.00039178,120]
[340846852,1729922862427,-500.0,0.00039178,120]
[340846853,1729922862460,-501.01582529,0.00039178,120]
[340846854,1729922862493,-1031.89,0.00039178,120]
[340846855,1729922862526,-500.0,0.00039178,120]
[340846856,1729922862559,-657.5,0.00039178,120]
[340846857,1729922862591,-919.35,0.00039178,120]
[340846858,1729922862626,-500.0,0.00039178,120]
[340846859,1729922862660,-587.5,0.00039178,120]
[340846860,1729922862692,-500.0,0.00039178,120]
[340846861,1729922862726,-500.0,0.00039178,120]
[340846862,1729922862759,-500.0,0.00039178,120]
[340846863,1729922862952,-507.40968315,0.00039178,120]
[340846864,1729922862988,-500.0,0.00039178,120]
[340846865,1729922863020,-505.79030925,0.00039178,120]
[340846866,1729922863055,-517.70651792,0.00039178,120]
[340846867,1729922863092,-500.0,0.00039178,120]
[340846868,1729922863126,-500.0,0.00039178,120]
[340846869,1729922863162,-500.0,0.00039178,120]
[340846870,1729922863196,-461.01579121,0.00039178,120]
[340846871,1729922863231,-838.34,0.00039178,120]
[340846872,1729922863265,-500.0,0.00039178,120]
[340846873,1729922863300,-840.45,0.00039178,120]
[340846874,1729922863333,-500.0,0.00039178,120]
[340846875,1729922863367,-539.66,0.00039178,120]
[340846876,1729922863399,-500.0,0.00039178,120]
[340846877,1729922863432,-1068.14,0.00039178,120]
[340846878,1729922863467,-500.0,0.00039178,120]
[340846879,1729922863502,-671.94,0.00039178,120]
[340846880,1729922863536,-200.0,0.00039178,120]
[340846881,1729922863571,-500.0,0.00039178,120]
[340846882,1729922863613,-587.81363747,0.00039178,120]
[340846883,1729922863646,-651.68,0.00039178,120]
[340846884,1729922863681,-500.0,0.00039178,120]
[340846885,1729922863714,-468.44637372,0.00039178,120]
[340846886,1729922863746,-690.97,0.00039178,120]
[340846887,1729922863779,-500.0,0.00039178,120]
[340846888,1729922863812,-25955.76,0.00039178,60]
[340846889,1729922863844,-500.0,0.00039178,120]
[340846890,1729922863877,-854.34,0.00039178,120]
[340846891,1729922863913,-500.0,0.00039178,120]
[340846892,1729922863946,-500.0,0.00039178,120]
[340846893,1729922863981,-1000.0,0.00039178,120]
[340846894,1729922864014,-1115.62,0.00039178,120]
[340846895,1729922864048,-2200.05,0.00039178,120]
[340846896,1729922864082,-500.0,0.00039178,120]
[340846897,1729922864114,-629.76,0.00039178,120]
[340846898,1729922864146,-1907.85,0.00039178,120]
[340846899,1729922864180,-500.0,0.00039178,120]
[340846900,1729922864213,-2156.9,0.00039178,120]
[340846901,1729922864246,-423.87674,0.00039178,120]
[340846902,1729922864277,-500.0,0.00039178,120]
[340846903,1729922864309,-500.0,0.00039178,120]
[340846904,1729922864341,-500.0,0.00039178,120]
[340846905,1729922864374,-500.0,0.00039178,120]
[340846906,1729922864406,-943.32,0.00039178,120]
[340846907,1729922864439,-1041.41,0.00039178,120]
[340846908,1729922864471,-500.0,0.00039178,120]
[340846909,1729922864505,-500.0,0.00039178,120]
[340846910,1729922864538,-3371.57,0.00039178,120]
[340846911,1729922864570,-504.36757176,0.00039178,30]
[340846912,1729922864603,-728.94,0.00039178,120]
[340846913,1729922864636,-651.62,0.00039178,120]
[340846914,1729922864671,-500.0,0.00039178,120]
[340846915,1729922864705,-570.17,0.00039178,120]
[340846916,1729922864737,-748.84,0.00039178,120]
[340846917,1729922864772,-500.0,0.00039178,120]
[340846918,1729922864807,-205.11162618,0.00039178,120]
[340846919,1729922864842,-538.73,0.00039178,120]
[340846920,1729922864877,-500.0,0.00039178,120]
[340846921,1729922864911,-500.0,0.00039178,120]
[340846922,1729922864947,-625.81,0.00039178,120]
[340846923,1729922864981,-500.0,0.00039178,120]
[340846924,1729922865017,-579.77552648,0.00039178,120]
[340846925,1729922865052,-1000.17,0.00039178,120]
[340846926,1729922865088,-500.0,0.00039178,120]
[340846927,1729922865122,-678.04,0.00039178,120]
[340846928,1729922865155,-500.0,0.00039178,120]
[340846929,1729922865190,-529.84,0.00039178,120]
[340846930,1729922865225,-512.53569052,0.00039178,120]
[340846931,1729922865259,-500.0,0.00039178,120]
[340846932,1729922865292,-500.0,0.00039178,120]
[340846933,1729922865326,-648.97,0.00039178,120]
[340846934,1729922865360,-500.0,0.00039178,120]
[340846935,1729922865395,-500.0,0.00039178,120]
[340846936,1729922865430,-500.0,0.00039178,120]
[340846937,1729922865466,-500.0,0.00039178,120]
[340846938,1729922865501,-962.66,0.00039178,120]
[340846939,1729922865537,-480.0812399,0.00039178,120]
[340846940,1729922865571,-638.5,0.00039178,60]
[340846941,1729922865607,-700.16,0.00039178,120]
[340846942,1729922865640,-500.0,0.00039178,120]
[340846943,1729922865676,-500.0,0.00039178,120]
[340846944,1729922865710,-500.0,0.00039178,120]
[340846945,1729922865744,-500.0,0.00039178,120]
[340846946,1729922865780,-500.0,0.00039178,120]
[340846947,1729922865814,-500.0,0.00039178,120]
[340846948,1729922865847,-500.0,0.00039178,120]
[340846949,1729922865882,-500.0,0.00039178,120]
[340846950,1729922865919,-1128.88,0.00039178,120]
[340846951,1729922865955,-523.1,0.00039178,120]
[340846952,1729922865989,-5876.07,0.00039178,120]
[340846953,1729922866022,-500.0,0.00039178,120]
[340846954,1729922866055,-500.0,0.00039178,120]
[340846955,1729922866090,-853.81,0.00039178,120]
[340846956,1729922866128,-838.79,0.00039178,120]
[340846957,1729922866163,-500.0,0.00039178,120]
[340846958,1729922866198,-500.0,0.00039178,120]
[340846959,1729922866235,-590.88,0.00039178,120]
[340846960,1729922866272,-757.11,0.00039178,120]
[340846961,1729922866308,-500.0,0.00039178,120]
[340846962,1729922866343,-500.0,0.00039178,120]
[340846963,1729922866380,-500.0,0.00039178,120]
[340846964,1729922866417,-500.0,0.00039178,120]
[340846965,1729922866454,-591.89,0.00039178,120]
[340846966,1729922866491,-658.79,0.00039178,120]
[340846967,1729922866687,-500.0,0.00039178,120]
[340846968,1729922866726,-699.36,0.00039178,120]
[340846969,1729922866763,-500.0,0.00039178,120]
[340846970,1729922866800,-740.49,0.00039178,120]
[340846971,1729922866837,-316.49006941,0.00039178,120]
[340846972,1729922866875,-12053.78,0.00039178,60]
[340846973,1729922866910,-500.0,0.00039178,120]
[340846974,1729922866946,-596.71,0.00039178,120]
[340846975,1729922866982,-500.0,0.00039178,120]
[340846976,1729922867017,-618.89,0.00039178,120]
[340846977,1729922867054,-500.0,0.00039178,120]
[340846978,1729922867087,-500.0,0.00039178,120]
[340846979,1729922867120,-500.0,0.00039178,120]
[340846980,1729922867156,-852.92,0.00039178,120]
[340846981,1729922867193,-500.0,0.00039178,120]
[340846982,1729922867228,-500.0,0.00039178,120]
[340846983,1729922867263,-500.0,0.00039178,120]
[340846984,1729922867297,-500.0,0.00039178,120]
[340846985,1729922867331,-714.12,0.00039178,120]
[340846986,1729922867367,-1004.2,0.00039178,120]
[340846987,1729922867400,-501.83859859,0.00039178,120]
[340846988,1729922867435,-4091.94,0.00039178,120]
[340846989,1729922867468,-257.25826621,0.00039178,120]
[340846990,1729922867507,-2465.37,0.00039178,120]
[340846991,1729922867541,-500.0,0.00039178,30]
[340846992,1729922867576,-500.0,0.00039178,60]
[340846993,1729922867610,-500.0,0.00039178,120]
[340846994,1729922867643,-6307.75,0.00039178,120]
[340846995,1729922867679,-522.0838708,0.00039178,120]
[340846996,1729922867713,-1333.31,0.00039178,120]
[340846997,1729922867747,-1109.11,0.00039178,120]
[340846998,1729922867782,-745.83,0.00039178,120]
[340846999,1729922867815,-503.39716398,0.00039178,120]
[340847000,1729922867849,-500.0,0.00039178,120]
[340847001,1729922867883,-663.59,0.00039178,120]
[340847002,1729922867918,-3262.64,0.00039178,120]
[340847003,1729922867951,-755.36,0.00039178,120]
[340847004,1729922867985,-500.0,0.00039178,120]
[340847005,1729922868020,-503.67089104,0.00039178,120]
[340847006,1729922868056,-509.83,0.00039178,120]
[340847007,1729922868090,-1887.15,0.00039178,120]
[340847008,1729922868126,-512.0,0.00039178,120]
[340847009,1729922868161,-732.27,0.00039178,120]
[340847010,1729922868200,-511.74014672,0.00039178,120]
[340847011,1729922868236,-500.0,0.00039178,120]
[340847012,1729922868270,-666.9,0.00039178,120]
[340847013,1729922868305,-605.99557785,0.00039178,120]
[340847014,1729922868340,-3097.42,0.00039178,120]
[340847015,1729922868373,-500.0,0.00039178,120]
[340847016,1729922868408,-1747.41,0.00039178,120]
[340847017,1729922868444,-701.22,0.00039178,120]
[340847018,1729922868480,-593.79,0.00039178,120]
[340847019,1729922868513,-508.58291011,0.00039178,120]
[340847020,1729922868548,-3038.71,0.00039178,120]
[340847021,1729922868582,-500.0,0.00039178,120]
[340847022,1729922868615,-1236.57,0.00039178,120]
[340847023,1729922868648,-500.0,0.00039178,120]
[340847024,1729922868682,-1866.69,0.00039178,120]
[340847025,1729922868715,-500.0,0.00039178,120]
[340847026,1729922868751,-617.34,0.00039178,120]
[340847027,1729922868786,-624.57,0.00039178,120]
[340847028,1729922868820,-610.14,0.00039178,120]
[340847029,1729922868853,-500.0,0.00039178,120]
[340847030,1729922868886,-1288.8,0.000393,30]
[340847031,1729922868920,-2404.34,0.000393,30]
[340847032,1729922868955,-500.0,0.00039452,120]
[340847033,1729922868992,-270.47826828,0.00039452,120]
[340847034,1729922869026,-500.0,0.00039452,120]
[340847035,1729922869061,-500.0,0.00039452,120]
[340847036,1729922869095,-560.27,0.00039452,120]
[340847037,1729922869129,-611.66,0.00039452,120]
[340847038,1729922869161,-529.03,0.00039452,120]
[340847039,1729922869194,-500.0,0.00039452,120]
[340847040,1729922869229,-614.4,0.00039452,120]
[340847041,1729922869264,-676.77,0.00039452,120]
[340847042,1729922869302,-1037.79,0.00039452,120]
[340847043,1729922869335,-501.35653345,0.00039452,120]
[340847044,1729922869368,-561.85,0.00039452,120]
[340847045,1729922869401,-573.22,0.00039452,120]
[340847046,1729922869436,-782.58,0.00039452,120]
[340847047,1729922869469,-500.0,0.00039452,120]
[340847048,1729922869503,-500.0,0.00039452,120]
[340847049,1729922869537,-501.73145076,0.00039452,120]
[340847050,1729922869570,-511.31,0.00039452,120]
[340847051,1729922869603,-506.16300941,0.00039452,120]
[340847052,1729922869635,-1069.36,0.00039452,120]
[340847053,1729922869668,-500.0,0.00039452,120]
[340847054,1729922869700,-500.0,0.00039452,120]
[340847055,1729922869732,-500.0,0.00039452,120]
[340847056,1729922869766,-770.08,0.00039452,120]
[340847057,1729922869799,-587.05,0.00039452,120]
[340847058,1729922869832,-502.91011413,0.00039452,120]
[340847059,1729922869866,-500.0,0.00039452,120]
[340847060,1729922869899,-500.0,0.00039452,120]
[340847061,1729922869934,-500.0,0.00039452,120]
[340847062,1729922869967,-741.21,0.00039452,120]
[340847063,1729922870002,-577.74969623,0.00039452,120]
[340847064,1729922870035,-500.0,0.00039452,120]
[340847065,1729922870068,-860.83,0.00039452,120]
[340847066,1729922870103,-523.0,0.00039452,120]
[340847067,1729922870136,-500.0,0.00039452,120]
[340847068,1729922870170,-223.13710627,0.00039452,120]
[340847069,1729922870205,-701.19,0.00039452,120]
[340847070,1729922870239,-688.14,0.00039452,120]
[340847071,1729922870442,-500.0,0.00039452,120]
[340847072,1729922870476,-823.26,0.00039452,120]
[340847073,1729922870512,-500.0,0.00039452,120]
[340847074,1729922870547,-696.3,0.00039452,120]
[340847075,1729922870580,-500.0,0.00039452,120]
[340847076,1729922870613,-984.06,0.00039452,120]
[340847077,1729922870647,-500.0,0.00039452,120]
[340847078,1729922870683,-1103.44,0.00039452,120]
[340847079,1729922870716,-508.62945349,0.00039452,120]
[340847080,1729922870748,-613.26,0.00039452,120]
[340847081,1729922870783,-1666.17,0.00039452,30]
[340847082,1729922870817,-793.48,0.00039452,120]
[340847083,1729922870849,-500.0,0.00039452,120]
[340847084,1729922870881,-468.7541979,0.00039452,120]
[340847085,1729922870917,-651.97,0.00039452,120]
[340847086,1729922870951,-838.88,0.00039452,120]
[340847087,1729922870984,-500.0,0.00039452,120]
[340847088,1729922871017,-500.0,0.00039452,120]
[340847089,1729922871051,-500.0,0.00039452,120]
[340847090,1729922871085,-500.0,0.00039452,120]
[340847091,1729922871120,-936.86,0.00039452,120]
[340847092,1729922871158,-1101.64,0.00039452,120]
[340847093,1729922871193,-500.0,0.00039452,120]
[340847094,1729922871229,-631.38,0.00039452,120]
[340847095,1729922871264,-500.0,0.00039452,120]
[340847096,1729922871297,-952.51,0.00039452,120]
[340847097,1729922871331,-1050.85,0.00039452,120]
[340847098,1729922871364,-500.0,0.00039452,120]
[340847099,1729922871398,-500.0,0.00039452,120]
[340847100,1729922871434,-500.0,0.00039452,120]
[340847101,1729922871469,-512.3,0.00039452,120]
[340847102,1729922871506,-877.85,0.00039452,120]
[340847103,1729922871541,-399.38407662,0.00039452,120]
[340847104,1729922871577,-503.46033431,0.00039452,120]
[340847105,1729922871611,-502.42055632,0.00039452,120]
[340847106,1729922871645,-500.0,0.00039452,120]
[340847107,1729922871680,-409.4610264,0.00039452,120]
[340847108,1729922871714,-671.09,0.00039452,120]
[340847109,1729922871746,-500.0,0.00039452,120]
[340847110,1729922871779,-1529.36,0.00039452,120]
[340847111,1729922871812,-500.0,0.00039452,120]
[340847112,1729922871847,-401.15692945,0.00039452,120]
[340847113,1729922871883,-225.97222456,0.00039452,120]
[340847114,1729922871919,-1375.9,0.00039452,120]
[340847115,1729922871954,-500.0,0.00039452,120]
[340847116,1729922871988,-594.8827116,0.00039452,120]
[340847117,1729922872022,-541.09,0.00039452,120]
[340847118,1729922872057,-503.82751417,0.00039452,120]
[340847119,1729922872092,-1117.62,0.00039452,120]
[340847120,1729922872126,-502.00218122,0.00039452,120]
[340847121,1729922872160,-500.0,0.00039452,120]
[340847122,1729922872193,-2332.27,0.00039452,120]
[340847123,1729922872226,-500.0,0.00039452,120]
[340847124,1729922872258,-500.0,0.00039452,120]
[340847125,1729922872291,-1077.9,0.00039452,120]
[340847126,1729922872325,-500.0,0.00039452,120]
[340847127,1729922872358,-603.68,0.00039452,120]
[340847128,1729922872392,-726.9,0.00039452,120]
[340847129,1729922872426,-371.22696462,0.00039452,120]
[340847130,1729922872458,-1364.93,0.00039452,120]
[340847131,1729922872493,-500.0,0.00039452,120]
[340847132,1729922872526,-500.0,0.00039452,120]
[340847133,1729922872559,-519.91,0.00039452,120]
[340847134,1729922872592,-507.29496002,0.00039452,120]
[340847135,1729922872625,-742.5,0.00039452,120]
[340847136,1729922872657,-1556.5,0.00039452,120]
[340847137,1729922872690,-503.20832908,0.00039452,120]
[340847138,1729922872724,-503.0706081,0.00039452,120]
[340847139,1729922872757,-500.0,0.00039452,120]
[340847140,1729922872792,-214.19523865,0.00039452,120]
[340847141,1729922872826,-500.0,0.00039452,120]
[340847142,1729922872861,-505.85562034,0.00039452,120]
[340847143,1729922872898,-1055.85,0.00039452,120]
[340847144,1729922872935,-529.75,0.00039452,120]
[340847145,1729922872972,-501.34793792,0.00039452,120]
[340847146,1729922873004,-503.84978474,0.00039452,120]
[340847147,1729922873037,-502.28614098,0.00039452,120]
[340847148,1729922873072,-172.78861511,0.00039452,120]
[340847149,1729922873106,-503.21662121,0.00039452,120]
[340847150,1729922873140,-502.2252861,0.00039452,120]
[340847151,1729922873177,-1021.03,0.00039452,120]
[340847152,1729922873214,-500.0,0.00039452,120]
[340847153,1729922873248,-563.99,0.00039452,120]
[340847154,1729922873282,-508.76500923,0.00039452,120]
[340847155,1729922873316,-503.73771459,0.00039452,120]
[340847156,1729922873351,-503.81028578,0.00039452,120]
[340847157,1729922873410,-500.0,0.00039452,120]
[340847158,1729922873444,-504.76533105,0.00039452,120]
[340847159,1729922873479,-500.0,0.00039452,120]
[340847160,1729922873515,-500.0,0.00039452,120]
[340847161,1729922873552,-683.79,0.00039452,120]
[340847162,1729922873587,-500.0,0.00039452,120]
[340847163,1729922873624,-1000.0,0.00039452,120]
[340847164,1729922873661,-502.80291678,0.00039452,120]
[340847165,1729922873695,-500.0,0.00039452,120]
[340847166,1729922873731,-500.0,0.00039452,120]
[340847167,1729922873767,-539.15,0.00039452,120]
[340847168,1729922873802,-508.37640959,0.00039452,120]
[340847169,1729922873836,-500.0,0.00039452,120]
[340847170,1729922873874,-500.0,0.00039452,120]
[340847171,1729922873909,-806.51,0.00039452,120]
[340847172,1729922873944,-1274.97,0.00039452,120]
[340847173,1729922873981,-818.92,0.00039452,120]
[340847174,1729922874019,-1696.78,0.00039452,120]
[340847175,1729922874282,-682.77,0.00039452,120]
[340847176,1729922874318,-500.0,0.00039452,120]
[340847177,1729922874350,-500.0,0.00039452,120]
[340847178,1729922874385,-1069.12,0.00039452,120]
[340847179,1729922874418,-504.19081706,0.00039452,120]
[340847180,1729922874452,-500.0,0.00039452,120]
[340847181,1729922874485,-500.0,0.00039452,120]
[340847182,1729922874519,-326.01908174,0.00039452,120]
[340847183,1729922874554,-1031.89,0.00039452,120]
[340847184,1729922874587,-510.63332746,0.00039452,120]
[340847185,1729922874621,-657.5,0.00039452,120]
[340847186,1729922874655,-919.35,0.00039452,120]
[340847187,1729922874693,-500.0,0.00039452,120]
[340847188,1729922874726,-587.5,0.00039452,120]
[340847189,1729922874761,-500.0,0.00039452,120]
[340847190,1729922874797,-500.0,0.00039452,120]
[340847191,1729922874832,-500.0,0.00039452,120]
[340847192,1729922874871,-500.0,0.00039452,120]
[340847193,1729922874905,-500.0,0.00039452,120]
[340847194,1729922874948,-500.0,0.00039452,120]
[340847195,1729922874983,-500.0,0.00039452,120]
[340847196,1729922875020,-838.34,0.00039452,120]
[340847197,1729922875055,-509.14395461,0.00039452,120]
[340847198,1729922875094,-840.45,0.00039452,120]
[340847199,1729922875129,-500.0,0.00039452,120]
[340847200,1729922875165,-539.66,0.00039452,120]
[340847201,1729922875201,-316.38390201,0.00039452,120]
[340847202,1729922875237,-1068.14,0.00039452,120]
[340847203,1729922875273,-264.53946591,0.00039452,120]
[340847204,1729922875309,-671.94,0.00039452,120]
[340847205,1729922875343,-200.0,0.00039452,120]
[340847206,1729922875377,-500.0,0.00039452,120]
[340847207,1729922875414,-651.68,0.00039452,120]
[340847208,1729922875450,-500.0,0.00039452,120]
[340847209,1729922875484,-690.97,0.00039452,120]
[340847210,1729922875517,-500.0,0.00039452,120]
[340847211,1729922875553,-25955.76,0.00039452,60]
[340847212,1729922875588,-500.0,0.00039452,120]
[340847213,1729922875621,-854.34,0.00039452,120]
[340847214,1729922875655,-506.23231287,0.00039452,120]
[340847215,1729922875691,-546.21081851,0.00039452,120]
[340847216,1729922875725,-1000.0,0.00039452,120]
[340847217,1729922875761,-1115.62,0.00039452,120]
[340847218,1729922875796,-2200.05,0.00039452,120]
[340847219,1729922875835,-563.27494289,0.00039452,120]
[340847220,1729922875868,-629.76,0.00039452,120]
[340847221,1729922875903,-1907.85,0.00039452,120]
[340847222,1729922875940,-500.0,0.00039452,120]
[340847223,1729922875977,-2156.9,0.00039452,120]
[340847224,1729922876028,-500.0,0.00039452,120]
[340847225,1729922876067,-500.0,0.00039452,120]
[340847226,1729922876107,-507.88470069,0.00039452,120]
[340847227,1729922876146,-500.0,0.00039452,120]
[340847228,1729922876183,-943.32,0.00039452,120]
[340847229,1729922876222,-730.56677402,0.00039452,120]
[340847230,1729922879616,-501.17427175,0.00038356,120]
[340847231,1729922879654,-500.0,0.0003863,120]
[340847232,1729922879691,-3305.93,0.0003863,120]
[340847233,1729922879726,-810.12,0.00038904,120]
[340847234,1729922879763,-3305.93,0.00038904,120]
[340847235,1729922879797,-500.0,0.00038904,120]
[340847236,1729922879833,-810.12,0.00039178,120]
[340847237,1729922879868,-3305.93,0.00039178,120]
[340847238,1729922879903,-500.0,0.00039178,120]
[340847239,1729922879937,-310.84322598,0.00039452,120]
[340847240,1729922879972,-604.83623468,0.00039452,120]
[340847241,1729922880006,-500.0,0.00039452,120]
[340847242,1729922880040,-3371.57,0.00039452,120]
[340847243,1729922880076,-728.94,0.00039452,120]
[340847244,1729922880112,-651.62,0.00039452,120]
[340847245,1729922880309,-500.0,0.00039452,120]
[340847246,1729922880353,-570.17,0.00039452,120]
[340847247,1729922880390,-748.84,0.00039452,120]
[340847248,1729922880428,-511.32226937,0.00039452,120]
[340847249,1729922880470,-538.73,0.00039452,120]
[340847250,1729922880507,-500.0,0.00039452,120]
[340847251,1729922880543,-500.0,0.00039452,120]
[340847252,1729922880581,-625.81,0.00039452,120]
[340847253,1729922880620,-508.81133124,0.00039452,120]
[340847254,1729922880659,-1000.17,0.00039452,120]
[340847255,1729922880697,-500.0,0.00039452,120]
[340847256,1729922880735,-678.04,0.00039452,120]
[340847257,1729922880773,-500.0,0.00039452,120]
[340847258,1729922880810,-529.84,0.00039452,120]
[340847259,1729922880848,-503.01415757,0.00039452,120]
[340847260,1729922880884,-500.0,0.00039452,120]
[340847261,1729922880922,-648.97,0.00039452,120]
[340847262,1729922880960,-502.54288966,0.00039452,120]
[340847263,1729922880997,-502.77615253,0.00039452,120]
[340847264,1729922881038,-500.0,0.00039452,120]
[340847265,1729922881076,-500.0,0.00039452,120]
[340847266,1729922881114,-962.66,0.00039452,120]
[340847267,1729922881154,-638.5,0.00039452,60]
[340847268,1729922881196,-500.0,0.00039452,120]
[340847269,1729922881236,-700.16,0.00039452,120]
[340847270,1729922881275,-500.0,0.00039452,120]
[340847271,1729922881311,-192.85998804,0.00039452,120]
[340847272,1729922881349,-504.04897349,0.00039452,120]
[340847273,1729922881386,-500.0,0.00039452,120]
[340847274,1729922881423,-500.0,0.00039452,120]
[340847275,1729922881459,-500.0,0.00039452,120]
[340847276,1729922881495,-500.0,0.00039452,120]
[340847277,1729922881532,-1128.88,0.00039452,120]
[340847278,1729922881569,-523.1,0.00039452,120]
[340847279,1729922881605,-5876.07,0.00039452,120]
[340847280,1729922881641,-407.94797769,0.00039452,120]
[340847281,1729922881678,-500.0,0.00039452,120]
[340847282,1729922881715,-853.81,0.00039452,120]
[340847283,1729922881750,-838.79,0.00039452,120]
[340847284,1729922881788,-500.0,0.00039452,120]
[340847285,1729922881824,-531.61997024,0.00039452,120]
[340847286,1729922881862,-590.88,0.00039452,120]
[340847287,1729922881897,-757.11,0.00039452,120]
[340847288,1729922881935,-500.0,0.00039452,120]
[340847289,1729922881970,-500.0,0.00039452,120]
[340847290,1729922882007,-500.0,0.00039452,120]
[340847291,1729922882043,-500.0,0.00039452,120]
[340847292,1729922882079,-591.89,0.00039452,120]
[340847293,1729922882116,-658.79,0.00039452,120]
[340847294,1729922882154,-500.0,0.00039452,120]
[340847295,1729922882191,-500.0,0.00039452,120]
[340847296,1729922882228,-699.36,0.00039452,120]